[Event "Titled Tuesday Blitz June 21 Late 2022"]
[White "Lamaze, Simon"]
[Black "Novikova, Galina"]
[WhiteFideId "36069264"]
[BlackFideId "4157095"]
[WhiteElo "2090"]
[BlackElo "1863"]
[Result "1-0"]
[Round "02"]
[TimeControl "180+1"]
[Date "2022.06.22"]
[WhiteClock "0:00:58"]
[BlackClock "0:00:35"]

1. e4 {[%clk 0:02:59]}  e6 {[%clk 0:03:00]} 2. d4 {[%clk 0:02:59]}  d5 {[%clk 0:03:01]} 3. Nc3 {[%clk 0:02:59]}  Bb4 {[%clk 0:03:01]} 4. e5 {[%clk 0:03:00]}  c5 {[%clk 0:03:01]} 5. a3 {[%clk 0:03:00]}  Bxc3+ {[%clk 0:03:02]} 6. bxc3 {[%clk 0:03:01]}  Ne7 {[%clk 0:03:02]} 7. Qg4 {[%clk 0:02:59]}  Kf8 {[%clk 0:03:02]} 8. a4 {[%clk 0:02:52]}  Qa5 {[%clk 0:03:02]} 9. Ne2 {[%clk 0:02:50]}  Nbc6 {[%clk 0:03:01]} 10. Bd2 {[%clk 0:02:42]}  Qc7 {[%clk 0:03:01]} 11. h4 {[%clk 0:02:39]}  b6 {[%clk 0:02:59]} 12. h5 {[%clk 0:02:38]}  h6 {[%clk 0:02:59]} 13. Rh3 {[%clk 0:02:37]}  Na5 {[%clk 0:02:47]} 14. Nf4 {[%clk 0:02:16]}  Nc4 {[%clk 0:02:46]} 15. Bc1 {[%clk 0:02:12]}  cxd4 {[%clk 0:02:37]} 16. cxd4 {[%clk 0:02:11]}  Nf5 {[%clk 0:02:37]} 17. Bd3 {[%clk 0:02:07]}  Nxd4 {[%clk 0:02:32]} 18. Rg3 {[%clk 0:02:07]}  Rg8 {[%clk 0:02:29]} 19. Ng6+ {[%clk 0:01:32]}  fxg6 {[%clk 0:02:29]} 20. Qxd4 {[%clk 0:01:32]}  Qxe5+ {[%clk 0:02:29]} 21. Qxe5 {[%clk 0:01:32]}  Nxe5 {[%clk 0:02:30]} 22. Ba3+ {[%clk 0:01:29]}  Ke8 {[%clk 0:02:26]} 23. Be2 {[%clk 0:01:27]}  g5 {[%clk 0:02:20]} 24. Re3 {[%clk 0:01:26]}  Nf7 {[%clk 0:02:06]} 25. Rd1 {[%clk 0:01:23]}  Kd8 {[%clk 0:02:02]} 26. c4 {[%clk 0:01:23]}  Bd7 {[%clk 0:01:38]} 27. cxd5 {[%clk 0:01:22]}  e5 {[%clk 0:01:39]} 28. d6 {[%clk 0:01:20]}  Bxa4 {[%clk 0:01:36]} 29. Rc1 {[%clk 0:01:11]}  Rc8 {[%clk 0:01:36]} 30. Rxc8+ {[%clk 0:01:10]}  Kxc8 {[%clk 0:01:37]} 31. Bc4 {[%clk 0:01:10]}  Be8 {[%clk 0:01:29]} 32. Be6+ {[%clk 0:01:09]}  Kd8 {[%clk 0:01:20]} 33. Rc3 {[%clk 0:01:09]}  Bd7 {[%clk 0:01:15]} 34. Bxf7 {[%clk 0:01:09]}  Rf8 {[%clk 0:01:16]} 35. Bg6 {[%clk 0:01:06]}  a5 {[%clk 0:01:12]} 36. Rc7 {[%clk 0:01:04]}  b5 {[%clk 0:00:54]} 37. Bc5 {[%clk 0:01:03]}  b4 {[%clk 0:00:42]} 38. Bb6 {[%clk 0:01:02]}  Bf5 {[%clk 0:00:34]} 39. Rf7+ {[%clk 0:00:57]}  Kc8 {[%clk 0:00:35]} 40. Rxf8+ {[%clk 0:00:57]}  Kb7 {[%clk 0:00:35]} 41. Bxf5 {[%clk 0:00:57]}  Kxb6 {[%clk 0:00:35]} 42. d7 {[%clk 0:00:58]} 1-0


[Site "https://www.chess.com"]

[Event "Titled Tuesday Blitz June 21 Late 2022"]
[White "Lopez Perdomo, Juan David"]
[Black "Vujic, Mihailo"]
[WhiteFideId "4405137"]
[BlackFideId "918873"]
[WhiteElo "1997"]
[BlackElo "2256"]
[Result "0-1"]
[Round "02"]
[TimeControl "180+1"]
[Date "2022.06.22"]
[WhiteClock "0:02:02"]
[BlackClock "0:01:23"]

1. e4 {[%clk 0:02:56]}  e5 {[%clk 0:02:59]} 2. Nf3 {[%clk 0:02:54]}  Nc6 {[%clk 0:03:00]} 3. Bb5 {[%clk 0:02:54]}  f5 {[%clk 0:02:59]} 4. d4 {[%clk 0:02:54]}  fxe4 {[%clk 0:02:59]} 5. Nxe5 {[%clk 0:02:54]}  Nxe5 {[%clk 0:02:59]} 6. dxe5 {[%clk 0:02:55]}  c6 {[%clk 0:03:00]} 7. Be2 {[%clk 0:02:50]}  Qa5+ {[%clk 0:03:00]} 8. Nc3 {[%clk 0:02:50]}  Qxe5 {[%clk 0:03:00]} 9. O-O {[%clk 0:02:50]}  Nf6 {[%clk 0:03:01]} 10. f4 {[%clk 0:02:49]}  Bc5+ {[%clk 0:02:58]} 11. Kh1 {[%clk 0:02:48]}  Qe7 {[%clk 0:02:58]} 12. g4 {[%clk 0:02:37]}  h5 {[%clk 0:02:42]} 13. g5 {[%clk 0:02:36]}  Ng4 {[%clk 0:02:42]} 14. Bxg4 {[%clk 0:02:36]}  hxg4 {[%clk 0:02:41]} 15. Qxg4 {[%clk 0:02:37]}  d5 {[%clk 0:02:40]} 16. Qg3 {[%clk 0:02:36]}  Rh3 {[%clk 0:02:38]} 17. Qg2 {[%clk 0:02:35]}  Bf5 {[%clk 0:02:36]} 18. Ne2 {[%clk 0:02:33]}  e3 {[%clk 0:02:20]} 19. Ng3 {[%clk 0:02:32]}  Rxg3 {[%clk 0:02:15]} 20. Qxg3 {[%clk 0:02:30]}  Be4+ {[%clk 0:02:15]} 21. Rf3 {[%clk 0:02:26]}  O-O-O {[%clk 0:01:55]} 22. b4 {[%clk 0:02:19]}  Bd4 {[%clk 0:01:52]} 23. Rb1 {[%clk 0:02:09]}  Bxc2 {[%clk 0:01:36]} 24. Bb2 {[%clk 0:02:09]}  Bxb1 {[%clk 0:01:35]} 25. Bxd4 {[%clk 0:02:09]}  Be4 {[%clk 0:01:35]} 26. Bxa7 {[%clk 0:02:06]}  Bxf3+ {[%clk 0:01:34]} 27. Qxf3 {[%clk 0:02:06]}  e2 {[%clk 0:01:33]} 28. Qg4+ {[%clk 0:02:04]}  Rd7 {[%clk 0:01:29]} 29. Bf2 {[%clk 0:02:00]}  e1=Q+ {[%clk 0:01:28]} 30. Bxe1 {[%clk 0:02:01]}  Qxe1+ {[%clk 0:01:27]} 31. Kg2 {[%clk 0:02:02]}  Qe4+ {[%clk 0:01:23]} 0-1


[Site "https://www.chess.com"]

[Event "Titled Tuesday Blitz June 21 Late 2022"]
[White "Manukyan, Sargis A."]
[Black "Kravtsiv, Martyn"]
[WhiteFideId "13303970"]
[BlackFideId "14113147"]
[WhiteElo "2187"]
[BlackElo "2694"]
[Result "0-1"]
[Round "02"]
[TimeControl "180+1"]
[Date "2022.06.21"]
[WhiteClock "0:00:34"]
[BlackClock "0:01:34"]

1. d4 {[%clk 0:03:00]}  d5 {[%clk 0:02:59]} 2. Nf3 {[%clk 0:02:59]}  e6 {[%clk 0:02:59]} 3. g3 {[%clk 0:02:57]}  b6 {[%clk 0:02:53]} 4. Bg2 {[%clk 0:02:56]}  Bb7 {[%clk 0:02:54]} 5. O-O {[%clk 0:02:57]}  Bd6 {[%clk 0:02:52]} 6. Bg5 {[%clk 0:02:55]}  Ne7 {[%clk 0:02:51]} 7. Nbd2 {[%clk 0:02:52]}  h6 {[%clk 0:02:49]} 8. Bxe7 {[%clk 0:02:46]}  Qxe7 {[%clk 0:02:49]} 9. c4 {[%clk 0:02:45]}  O-O {[%clk 0:02:49]} 10. Rc1 {[%clk 0:02:44]}  Nd7 {[%clk 0:02:48]} 11. a3 {[%clk 0:02:39]}  c5 {[%clk 0:02:47]} 12. Qa4 {[%clk 0:02:32]}  Rfd8 {[%clk 0:02:44]} 13. Rfd1 {[%clk 0:02:31]}  cxd4 {[%clk 0:02:39]} 14. Nxd4 {[%clk 0:02:30]}  Nc5 {[%clk 0:02:39]} 15. Qc2 {[%clk 0:02:24]}  Be5 {[%clk 0:02:35]} 16. N2f3 {[%clk 0:02:05]}  Bf6 {[%clk 0:02:35]} 17. cxd5 {[%clk 0:02:05]}  Bxd5 {[%clk 0:02:18]} 18. b4 {[%clk 0:02:05]}  Be4 {[%clk 0:02:11]} 19. Qa2 {[%clk 0:01:59]}  Na4 {[%clk 0:02:09]} 20. Qb3 {[%clk 0:01:49]}  Qe8 {[%clk 0:02:03]} 21. e3 {[%clk 0:01:40]}  Rac8 {[%clk 0:02:01]} 22. h4 {[%clk 0:01:13]}  Bd5 {[%clk 0:01:59]} 23. Qb1 {[%clk 0:00:47]}  Nc3 {[%clk 0:01:57]} 24. Rxc3 {[%clk 0:00:45]}  Rxc3 {[%clk 0:01:58]} 25. Qb2 {[%clk 0:00:38]}  Rdc8 {[%clk 0:01:54]} 26. b5 {[%clk 0:00:34]}  Qf8 {[%clk 0:01:49]} 27. a4 {[%clk 0:00:33]}  Qa3 {[%clk 0:01:49]} 28. Qe2 {[%clk 0:00:33]}  Qxa4 {[%clk 0:01:45]} 29. e4 {[%clk 0:00:33]}  Qxd1+ {[%clk 0:01:38]} 30. Qxd1 {[%clk 0:00:33]}  Rc1 {[%clk 0:01:38]} 31. Qxc1 {[%clk 0:00:33]}  Rxc1+ {[%clk 0:01:37]} 32. Kh2 {[%clk 0:00:34]}  Bxe4 {[%clk 0:01:37]} 33. Nc6 {[%clk 0:00:33]}  Bxc6 {[%clk 0:01:36]} 34. Nd4 {[%clk 0:00:34]}  Bxg2 {[%clk 0:01:34]} 0-1


[Site "https://www.chess.com"]

[Event "Titled Tuesday Blitz June 21 Late 2022"]
[White "Mendonca, Leon Luke"]
[Black "Baches Garcia, Guillermo"]
[WhiteFideId "35028561"]
[BlackFideId "2209764"]
[WhiteElo "2152"]
[BlackElo "2467"]
[Result "1-0"]
[Round "02"]
[TimeControl "180+1"]
[Date "2022.06.22"]
[WhiteClock "0:00:10"]
[BlackClock "0:00:05"]

1. g3 {[%clk 0:03:00]}  g6 {[%clk 0:02:59]} 2. Bg2 {[%clk 0:03:01]}  Bg7 {[%clk 0:03:00]} 3. Nf3 {[%clk 0:03:01]}  Nf6 {[%clk 0:03:00]} 4. d4 {[%clk 0:03:01]}  O-O {[%clk 0:02:58]} 5. O-O {[%clk 0:03:01]}  d6 {[%clk 0:02:58]} 6. Nc3 {[%clk 0:03:00]}  Nc6 {[%clk 0:02:45]} 7. e4 {[%clk 0:02:45]}  e5 {[%clk 0:02:44]} 8. h3 {[%clk 0:02:27]}  exd4 {[%clk 0:02:41]} 9. Nxd4 {[%clk 0:02:27]}  Bd7 {[%clk 0:02:40]} 10. Nde2 {[%clk 0:02:18]}  Re8 {[%clk 0:02:37]} 11. g4 {[%clk 0:02:16]}  Qc8 {[%clk 0:02:20]} 12. Ng3 {[%clk 0:01:59]}  Be6 {[%clk 0:02:01]} 13. Bg5 {[%clk 0:01:47]}  h6 {[%clk 0:01:50]} 14. Be3 {[%clk 0:01:45]}  Nd7 {[%clk 0:01:44]} 15. Qd2 {[%clk 0:01:42]}  Kh7 {[%clk 0:01:43]} 16. f4 {[%clk 0:01:40]}  Bc4 {[%clk 0:01:43]} 17. Rf2 {[%clk 0:01:38]}  Nb6 {[%clk 0:01:26]} 18. Rd1 {[%clk 0:01:33]}  a5 {[%clk 0:01:12]} 19. b3 {[%clk 0:01:05]}  Ba6 {[%clk 0:01:08]} 20. f5 {[%clk 0:01:01]}  Ne5 {[%clk 0:01:02]} 21. f6 {[%clk 0:00:51]}  Bf8 {[%clk 0:01:00]} 22. Nd5 {[%clk 0:00:49]}  Nxd5 {[%clk 0:00:54]} 23. exd5 {[%clk 0:00:50]}  a4 {[%clk 0:00:49]} 24. Bd4 {[%clk 0:00:47]}  axb3 {[%clk 0:00:46]} 25. axb3 {[%clk 0:00:47]}  c5 {[%clk 0:00:45]} 26. dxc6 {[%clk 0:00:43]}  bxc6 {[%clk 0:00:43]} 27. Ne4 {[%clk 0:00:36]}  d5 {[%clk 0:00:35]} 28. Nc5 {[%clk 0:00:33]}  Bxc5 {[%clk 0:00:32]} 29. Bxc5 {[%clk 0:00:33]}  Re6 {[%clk 0:00:29]} 30. Be3 {[%clk 0:00:31]}  Qd8 {[%clk 0:00:22]} 31. Bxh6 {[%clk 0:00:21]}  Rxf6 {[%clk 0:00:22]} 32. Be3 {[%clk 0:00:18]}  Rxf2 {[%clk 0:00:20]} 33. Qxf2 {[%clk 0:00:19]}  Qe7 {[%clk 0:00:18]} 34. Bd4 {[%clk 0:00:19]}  Re8 {[%clk 0:00:17]} 35. Kh1 {[%clk 0:00:17]}  f6 {[%clk 0:00:17]} 36. Re1 {[%clk 0:00:17]}  Kg7 {[%clk 0:00:17]} 37. g5 {[%clk 0:00:17]}  Bc8 {[%clk 0:00:15]} 38. Qg3 {[%clk 0:00:15]}  Qd6 {[%clk 0:00:14]} 39. gxf6+ {[%clk 0:00:15]}  Kxf6 {[%clk 0:00:14]} 40. Qf4+ {[%clk 0:00:14]}  Bf5 {[%clk 0:00:13]} 41. b4 {[%clk 0:00:13]}  Re6 {[%clk 0:00:13]} 42. c3 {[%clk 0:00:13]}  Qc7 {[%clk 0:00:12]} 43. Re3 {[%clk 0:00:13]}  Qd6 {[%clk 0:00:12]} 44. Qg3 {[%clk 0:00:13]}  Qc7 {[%clk 0:00:11]} 45. Qh4+ {[%clk 0:00:13]}  Kg7 {[%clk 0:00:11]} 46. Qf4 {[%clk 0:00:13]}  Kf6 {[%clk 0:00:10]} 47. Rg3 {[%clk 0:00:13]}  Qd6 {[%clk 0:00:07]} 48. h4 {[%clk 0:00:13]}  Kf7 {[%clk 0:00:05]} 49. h5 {[%clk 0:00:12]}  Ng4 {[%clk 0:00:05]} 50. Rxg4 {[%clk 0:00:11]}  Qxf4 {[%clk 0:00:04]} 51. Rxf4 {[%clk 0:00:12]}  Re2 {[%clk 0:00:04]} 52. h6 {[%clk 0:00:11]}  Kg8 {[%clk 0:00:04]} 53. Rf2 {[%clk 0:00:10]}  Kh7 {[%clk 0:00:05]} 54. Rxe2 {[%clk 0:00:10]} 1-0


[Site "https://www.chess.com"]

[Event "Titled Tuesday Blitz June 21 Late 2022"]
[White "Mortazavi, Ali"]
[Black "Kadric, Denis"]
[WhiteFideId "401323"]
[BlackFideId "14403803"]
[WhiteElo "2339"]
[BlackElo "2657"]
[Result "0-1"]
[Round "02"]
[TimeControl "180+1"]
[Date "2022.06.22"]
[WhiteClock "0:00:02"]
[BlackClock "0:00:10"]

1. Nf3 {[%clk 0:03:00]}  d6 {[%clk 0:03:00]} 2. e4 {[%clk 0:02:59]}  Nf6 {[%clk 0:03:01]} 3. Nc3 {[%clk 0:02:59]}  e5 {[%clk 0:03:01]} 4. d4 {[%clk 0:02:58]}  Nbd7 {[%clk 0:03:02]} 5. Bc4 {[%clk 0:02:58]}  Be7 {[%clk 0:03:02]} 6. a4 {[%clk 0:02:59]}  O-O {[%clk 0:03:03]} 7. a5 {[%clk 0:02:59]}  c6 {[%clk 0:03:03]} 8. O-O {[%clk 0:02:58]}  exd4 {[%clk 0:03:04]} 9. Nxd4 {[%clk 0:02:57]}  Ne5 {[%clk 0:03:03]} 10. Ba2 {[%clk 0:02:55]}  Re8 {[%clk 0:03:03]} 11. h3 {[%clk 0:02:52]}  Bd7 {[%clk 0:03:03]} 12. f4 {[%clk 0:02:52]}  Ng6 {[%clk 0:03:03]} 13. Qf3 {[%clk 0:02:51]}  b5 {[%clk 0:03:02]} 14. Nf5 {[%clk 0:02:29]}  Bf8 {[%clk 0:02:49]} 15. b4 {[%clk 0:02:24]}  d5 {[%clk 0:02:47]} 16. Ng3 {[%clk 0:02:12]}  Bxb4 {[%clk 0:02:34]} 17. e5 {[%clk 0:02:03]}  Qxa5 {[%clk 0:01:29]} 18. Nce2 {[%clk 0:01:39]}  Qb6+ {[%clk 0:01:23]} 19. Kh1 {[%clk 0:01:28]}  Ne4 {[%clk 0:01:22]} 20. Nxe4 {[%clk 0:01:28]}  dxe4 {[%clk 0:01:22]} 21. Qxe4 {[%clk 0:01:27]}  Bc5 {[%clk 0:01:21]} 22. Bb2 {[%clk 0:01:16]}  Be6 {[%clk 0:01:21]} 23. f5 {[%clk 0:01:13]}  Bxa2 {[%clk 0:01:18]} 24. fxg6 {[%clk 0:00:59]}  Bd5 {[%clk 0:01:19]} 25. gxf7+ {[%clk 0:00:58]}  Bxf7 {[%clk 0:01:18]} 26. Rxf7 {[%clk 0:00:58]}  Kxf7 {[%clk 0:01:18]} 27. Qxh7 {[%clk 0:00:56]}  Re7 {[%clk 0:01:09]} 28. Nf4 {[%clk 0:00:40]}  Rf8 {[%clk 0:00:46]} 29. e6+ {[%clk 0:00:26]}  Ke8 {[%clk 0:00:46]} 30. Ng6 {[%clk 0:00:15]}  Rxe6 {[%clk 0:00:47]} 31. Qxg7 {[%clk 0:00:09]}  Qd8 {[%clk 0:00:20]} 32. Nxf8 {[%clk 0:00:10]}  Bxf8 {[%clk 0:00:21]} 33. Qg8 {[%clk 0:00:10]}  Qe7 {[%clk 0:00:20]} 34. Rf1 {[%clk 0:00:08]}  Re1 {[%clk 0:00:20]} 35. Qg6+ {[%clk 0:00:09]}  Kd8 {[%clk 0:00:20]} 36. Qd3+ {[%clk 0:00:09]}  Kc8 {[%clk 0:00:20]} 37. Qf5+ {[%clk 0:00:07]}  Kb7 {[%clk 0:00:20]} 38. Bd4 {[%clk 0:00:05]}  Rxf1+ {[%clk 0:00:19]} 39. Qxf1 {[%clk 0:00:06]}  a6 {[%clk 0:00:17]} 40. Bg1 {[%clk 0:00:06]}  Qd8 {[%clk 0:00:16]} 41. Qf2 {[%clk 0:00:06]}  c5 {[%clk 0:00:16]} 42. Qf3+ {[%clk 0:00:06]}  Kb6 {[%clk 0:00:17]} 43. Qf5 {[%clk 0:00:06]}  Bd6 {[%clk 0:00:16]} 44. Qe4 {[%clk 0:00:06]}  Qc7 {[%clk 0:00:16]} 45. h4 {[%clk 0:00:06]}  a5 {[%clk 0:00:16]} 46. h5 {[%clk 0:00:06]}  Qf7 {[%clk 0:00:11]} 47. Qf3 {[%clk 0:00:04]}  Qe6 {[%clk 0:00:10]} 48. Be3 {[%clk 0:00:03]}  Qe5 {[%clk 0:00:10]} 49. Qh3 {[%clk 0:00:03]}  a4 {[%clk 0:00:07]} 50. h6 {[%clk 0:00:03]}  a3 {[%clk 0:00:08]} 51. h7 {[%clk 0:00:01]}  a2 {[%clk 0:00:09]} 52. h8=Q {[%clk 0:00:01]}  a1=Q+ {[%clk 0:00:09]} 53. Bg1 {[%clk 0:00:02]}  Qxh8 {[%clk 0:00:10]} 0-1


[Site "https://www.chess.com"]

[Event "Titled Tuesday Blitz June 21 Late 2022"]
[White "Needleman, Alejandro"]
[Black "Postnikov, Daniil"]
[WhiteFideId "100730"]
[BlackFideId "4166329"]
[WhiteElo "2310"]
[BlackElo "2261"]
[Result "0-1"]
[Round "02"]
[TimeControl "180+1"]
[Date "2022.06.22"]
[WhiteClock "0:01:13"]
[BlackClock "0:00:19"]

1. e4 {[%clk 0:02:56]}  e6 {[%clk 0:02:59]} 2. d4 {[%clk 0:02:53]}  d5 {[%clk 0:03:00]} 3. exd5 {[%clk 0:02:53]}  exd5 {[%clk 0:03:00]} 4. Nf3 {[%clk 0:02:54]}  Nf6 {[%clk 0:03:00]} 5. Bd3 {[%clk 0:02:55]}  c5 {[%clk 0:03:00]} 6. O-O {[%clk 0:02:56]}  Nc6 {[%clk 0:02:59]} 7. Bg5 {[%clk 0:02:52]}  Be7 {[%clk 0:02:51]} 8. dxc5 {[%clk 0:02:50]}  Bxc5 {[%clk 0:02:46]} 9. Re1+ {[%clk 0:02:46]}  Be6 {[%clk 0:02:45]} 10. Nbd2 {[%clk 0:02:45]}  h6 {[%clk 0:02:20]} 11. Bh4 {[%clk 0:02:44]}  O-O {[%clk 0:02:14]} 12. Nb3 {[%clk 0:02:43]}  Be7 {[%clk 0:02:12]} 13. Nfd4 {[%clk 0:02:40]}  Bg4 {[%clk 0:02:08]} 14. f3 {[%clk 0:02:33]}  Nxd4 {[%clk 0:02:02]} 15. Nxd4 {[%clk 0:02:33]}  Bd7 {[%clk 0:02:02]} 16. c3 {[%clk 0:02:31]}  Re8 {[%clk 0:02:01]} 17. Bc2 {[%clk 0:02:28]}  g6 {[%clk 0:01:56]} 18. Bb3 {[%clk 0:02:14]}  Qb6 {[%clk 0:01:31]} 19. Qd2 {[%clk 0:02:09]}  Bf8 {[%clk 0:01:21]} 20. Bf2 {[%clk 0:02:01]}  Qc7 {[%clk 0:01:14]} 21. Rxe8 {[%clk 0:01:57]}  Rxe8 {[%clk 0:01:14]} 22. Re1 {[%clk 0:01:58]}  Rxe1+ {[%clk 0:01:04]} 23. Bxe1 {[%clk 0:01:57]}  Kg7 {[%clk 0:01:01]} 24. Bg3 {[%clk 0:01:56]}  Bd6 {[%clk 0:01:00]} 25. Bxd6 {[%clk 0:01:55]}  Qxd6 {[%clk 0:01:01]} 26. Nc2 {[%clk 0:01:49]}  a5 {[%clk 0:00:57]} 27. Qd4 {[%clk 0:01:46]}  a4 {[%clk 0:00:54]} 28. Bxa4 {[%clk 0:01:34]}  Bxa4 {[%clk 0:00:55]} 29. Qxa4 {[%clk 0:01:34]}  Qb6+ {[%clk 0:00:55]} 30. Qd4 {[%clk 0:01:34]}  Qxb2 {[%clk 0:00:54]} 31. Ne3 {[%clk 0:01:35]}  Qa1+ {[%clk 0:00:52]} 32. Kf2 {[%clk 0:01:34]}  Qxa2+ {[%clk 0:00:52]} 33. Kg3 {[%clk 0:01:34]}  h5 {[%clk 0:00:41]} 34. h4 {[%clk 0:01:31]}  Qa5 {[%clk 0:00:34]} 35. Kf2 {[%clk 0:01:20]}  Qa6 {[%clk 0:00:29]} 36. g4 {[%clk 0:01:19]}  hxg4 {[%clk 0:00:20]} 37. fxg4 {[%clk 0:01:11]}  Kg8 {[%clk 0:00:20]} 38. Nxd5 {[%clk 0:01:11]}  Qa2+ {[%clk 0:00:19]} 39. Kf3 {[%clk 0:01:09]}  Qxd5+ {[%clk 0:00:18]} 40. Qxd5 {[%clk 0:01:08]}  Nxd5 {[%clk 0:00:19]} 41. c4 {[%clk 0:01:09]}  Nb6 {[%clk 0:00:18]} 42. c5 {[%clk 0:01:07]}  Nd7 {[%clk 0:00:18]} 43. Ke4 {[%clk 0:01:08]}  Nxc5+ {[%clk 0:00:18]} 44. Kd5 {[%clk 0:01:09]}  Nd7 {[%clk 0:00:19]} 45. Kd6 {[%clk 0:01:10]}  Nf6 {[%clk 0:00:19]} 46. g5 {[%clk 0:01:09]}  Ne8+ {[%clk 0:00:18]} 47. Kc5 {[%clk 0:01:10]}  Ng7 {[%clk 0:00:17]} 48. Kb6 {[%clk 0:01:10]}  Nf5 {[%clk 0:00:17]} 49. Kxb7 {[%clk 0:01:11]}  Nxh4 {[%clk 0:00:17]} 50. Kc6 {[%clk 0:01:12]}  Nf3 {[%clk 0:00:18]} 51. Kd5 {[%clk 0:01:13]}  Nxg5 {[%clk 0:00:19]} 0-1


[Site "https://www.chess.com"]

[Event "Titled Tuesday Blitz June 21 Late 2022"]
[White "Nilsson, Joakim"]
[Black "Di Nicolantonio, Lucas"]
[WhiteFideId "1723383"]
[BlackFideId "680460"]
[WhiteElo "2210"]
[BlackElo "2381"]
[Result "0-1"]
[Round "02"]
[TimeControl "180+1"]
[Date "2022.06.22"]
[WhiteClock "0:01:54"]
[BlackClock "0:01:43"]

1. d4 {[%clk 0:03:00]}  Nf6 {[%clk 0:02:55]} 2. Nc3 {[%clk 0:02:59]}  g6 {[%clk 0:02:52]} 3. Bf4 {[%clk 0:02:59]}  d6 {[%clk 0:02:52]} 4. h4 {[%clk 0:02:53]}  h5 {[%clk 0:02:36]} 5. f3 {[%clk 0:02:49]}  Nc6 {[%clk 0:02:35]} 6. d5 {[%clk 0:02:36]}  Ne5 {[%clk 0:02:32]} 7. e4 {[%clk 0:02:36]}  Bg7 {[%clk 0:02:30]} 8. Qd2 {[%clk 0:02:35]}  c5 {[%clk 0:02:29]} 9. Bb5+ {[%clk 0:02:27]}  Nfd7 {[%clk 0:02:27]} 10. Nh3 {[%clk 0:02:24]}  a6 {[%clk 0:02:23]} 11. Bxd7+ {[%clk 0:02:24]}  Bxd7 {[%clk 0:02:23]} 12. a4 {[%clk 0:02:24]}  Qc8 {[%clk 0:02:19]} 13. Ng5 {[%clk 0:02:22]}  b5 {[%clk 0:02:14]} 14. axb5 {[%clk 0:02:21]}  axb5 {[%clk 0:02:15]} 15. O-O {[%clk 0:02:21]}  O-O {[%clk 0:02:11]} 16. b3 {[%clk 0:02:14]}  b4 {[%clk 0:02:10]} 17. Na4 {[%clk 0:02:11]}  Nc4 {[%clk 0:02:02]} 18. Qe2 {[%clk 0:02:04]}  Bxa1 {[%clk 0:01:58]} 19. Rxa1 {[%clk 0:02:05]}  Ne5 {[%clk 0:01:49]} 20. Rf1 {[%clk 0:02:01]}  Bxa4 {[%clk 0:01:49]} 21. bxa4 {[%clk 0:02:01]}  Qa6 {[%clk 0:01:47]} 22. Qe3 {[%clk 0:01:57]}  Qc4 {[%clk 0:01:47]} 23. Bxe5 {[%clk 0:01:56]}  dxe5 {[%clk 0:01:47]} 24. f4 {[%clk 0:01:56]}  Qd4 {[%clk 0:01:47]} 25. Qxd4 {[%clk 0:01:53]}  exd4 {[%clk 0:01:47]} 26. Ra1 {[%clk 0:01:54]}  c4 {[%clk 0:01:46]} 27. Kf2 {[%clk 0:01:53]}  Rfb8 {[%clk 0:01:44]} 28. Ke2 {[%clk 0:01:53]}  b3 {[%clk 0:01:43]} 29. Kd2 {[%clk 0:01:52]}  b2 {[%clk 0:01:42]} 30. Rb1 {[%clk 0:01:53]}  c3+ {[%clk 0:01:42]} 31. Kd3 {[%clk 0:01:53]}  Rxa4 {[%clk 0:01:42]} 32. Nf3 {[%clk 0:01:54]}  Ra1 {[%clk 0:01:43]} 0-1


[Site "https://www.chess.com"]

[Event "Titled Tuesday Blitz June 21 Late 2022"]
[White "Oparin, Grigoriy"]
[Black "Bjelobrk, Igor"]
[WhiteFideId "24125890"]
[BlackFideId "4300726"]
[WhiteElo "2639"]
[BlackElo "2335"]
[Result "1-0"]
[Round "02"]
[TimeControl "180+1"]
[Date "2022.06.21"]
[WhiteClock "0:00:07"]
[BlackClock "0:00:11"]

1. e4 {[%clk 0:03:00]}  e5 {[%clk 0:02:59]} 2. Nf3 {[%clk 0:03:01]}  Nc6 {[%clk 0:02:58]} 3. Bb5 {[%clk 0:03:01]}  a6 {[%clk 0:02:57]} 4. Ba4 {[%clk 0:03:01]}  Bc5 {[%clk 0:02:56]} 5. O-O {[%clk 0:03:01]}  Nge7 {[%clk 0:02:56]} 6. c3 {[%clk 0:03:00]}  Ng6 {[%clk 0:02:55]} 7. d4 {[%clk 0:03:00]}  Ba7 {[%clk 0:02:55]} 8. Bg5 {[%clk 0:02:57]}  f6 {[%clk 0:02:54]} 9. Be3 {[%clk 0:02:57]}  O-O {[%clk 0:02:54]} 10. Nbd2 {[%clk 0:02:58]}  d6 {[%clk 0:02:54]} 11. Re1 {[%clk 0:02:58]}  Kh8 {[%clk 0:02:50]} 12. h3 {[%clk 0:02:57]}  Bd7 {[%clk 0:02:46]} 13. Bc2 {[%clk 0:02:54]}  a5 {[%clk 0:02:32]} 14. Nf1 {[%clk 0:02:54]}  exd4 {[%clk 0:02:04]} 15. cxd4 {[%clk 0:02:53]}  d5 {[%clk 0:02:01]} 16. exd5 {[%clk 0:02:45]}  Nb4 {[%clk 0:01:59]} 17. Bb3 {[%clk 0:02:45]}  Bb5 {[%clk 0:01:37]} 18. Ng3 {[%clk 0:02:44]}  Nxd5 {[%clk 0:01:35]} 19. Rc1 {[%clk 0:02:41]}  Ndf4 {[%clk 0:01:32]} 20. Bc2 {[%clk 0:02:25]}  Re8 {[%clk 0:01:32]} 21. Qd2 {[%clk 0:02:19]}  Nd5 {[%clk 0:01:19]} 22. Nh5 {[%clk 0:02:09]}  Qd7 {[%clk 0:01:11]} 23. Nh2 {[%clk 0:01:22]}  Bc6 {[%clk 0:01:10]} 24. Ng4 {[%clk 0:01:21]}  Nh4 {[%clk 0:00:56]} 25. Bh6 {[%clk 0:01:08]}  Rxe1+ {[%clk 0:00:39]} 26. Rxe1 {[%clk 0:01:08]}  Rg8 {[%clk 0:00:39]} 27. Bxg7+ {[%clk 0:00:34]}  Rxg7 {[%clk 0:00:39]} 28. Nxg7 {[%clk 0:00:35]}  Qxg7 {[%clk 0:00:38]} 29. Be4 {[%clk 0:00:14]}  f5 {[%clk 0:00:35]} 30. Bxd5 {[%clk 0:00:15]}  Bxd5 {[%clk 0:00:33]} 31. Re8+ {[%clk 0:00:15]}  Bg8 {[%clk 0:00:33]} 32. Qh6 {[%clk 0:00:15]}  fxg4 {[%clk 0:00:27]} 33. Qxh4 {[%clk 0:00:13]}  gxh3 {[%clk 0:00:26]} 34. Qxh3 {[%clk 0:00:14]}  Bxd4 {[%clk 0:00:26]} 35. Qf3 {[%clk 0:00:07]}  c6 {[%clk 0:00:20]} 36. b3 {[%clk 0:00:07]}  h6 {[%clk 0:00:20]} 37. Rd8 {[%clk 0:00:06]}  Be5 {[%clk 0:00:16]} 38. Re8 {[%clk 0:00:06]}  Bf6 {[%clk 0:00:16]} 39. Rb8 {[%clk 0:00:06]}  Be5 {[%clk 0:00:11]} 40. Re8 {[%clk 0:00:06]}  Kh7 {[%clk 0:00:11]} 41. Qf5+ {[%clk 0:00:05]}  Qg6 {[%clk 0:00:10]} 42. Qxg6+ {[%clk 0:00:05]}  Kxg6 {[%clk 0:00:09]} 43. Rxe5 {[%clk 0:00:06]}  Bd5 {[%clk 0:00:10]} 44. f3 {[%clk 0:00:05]}  Kf6 {[%clk 0:00:09]} 45. Re8 {[%clk 0:00:06]}  b5 {[%clk 0:00:08]} 46. Ra8 {[%clk 0:00:05]}  a4 {[%clk 0:00:07]} 47. bxa4 {[%clk 0:00:06]}  bxa4 {[%clk 0:00:08]} 48. Rxa4 {[%clk 0:00:06]}  Ke5 {[%clk 0:00:09]} 49. Kf2 {[%clk 0:00:06]}  c5 {[%clk 0:00:10]} 50. Ke3 {[%clk 0:00:06]}  c4 {[%clk 0:00:10]} 51. Ra5 {[%clk 0:00:07]}  Kd6 {[%clk 0:00:10]} 52. Kd4 {[%clk 0:00:06]}  Be6 {[%clk 0:00:11]} 53. Rc5 {[%clk 0:00:07]} 1-0


[Site "https://www.chess.com"]